bitfinex/quotes_BTCUSD_20211001
["timestamp","ask_amount","ask_price","bid_price","bid_amount"]
[1633110479346,10.3491541,47588.0,47587.0,0.3327666]
[1633110479543,10.3491541,47588.0,47587.0,0.32007687]
[1633110479749,9.92908684,47588.0,47587.0,0.56808371]
[1633110479945,9.92908684,47588.0,47587.0,0.60608371]
[1633110480546,9.92908684,47588.0,47587.0,0.45807687]
[1633110480746,9.92908684,47588.0,47587.0,0.88392151]
[1633110481345,9.92908684,47588.0,47587.0,0.84592151]
[1633110481346,9.92408684,47588.0,47587.0,0.84592151]
[1633110481545,9.92408684,47588.0,47587.0,0.74462554]
[1633110481947,9.92408684,47588.0,47587.0,0.79062554]
[1633110482547,9.92408684,47588.0,47587.0,0.80547415]
[1633110483346,9.92408684,47588.0,47587.0,0.75947415]
[1633110483946,9.92408684,47588.0,47587.0,0.80647415]
[1633110484148,9.92408684,47588.0,47587.0,1.05309061]
[1633110484549,9.92408684,47588.0,47587.0,0.90647415]
[1633110484949,9.92408684,47588.0,47587.0,0.89162554]
[1633110485145,9.92348684,47588.0,47587.0,3.24162554]
[1633110485350,9.92348684,47588.0,47587.0,1.08149108]
[1633110485547,9.92348684,47588.0,47587.0,0.86449908]
[1633110485750,9.92348684,47588.0,47587.0,1.12737213]
[1633110485952,9.92348684,47588.0,47587.0,1.16537213]
[1633110486815,9.92348684,47588.0,47587.0,1.36517213]
[1633110487015,9.92348684,47588.0,47587.0,1.35939549]
[1633110487212,9.92348684,47588.0,47587.0,1.35119549]
[1633110487415,9.92348684,47588.0,47587.0,1.31319549]
[1633110488016,9.92348684,47588.0,47587.0,1.35219549]
[1633110488217,9.92348684,47588.0,47587.0,1.3670441]
[1633110488617,9.92348684,47588.0,47587.0,1.10417105]
[1633110489215,9.92348684,47588.0,47587.0,1.06517105]
[1633110490017,9.92348684,47588.0,47587.0,1.10617105]
[1633110490220,9.92348684,47588.0,47587.0,1.32937105]
[1633110490418,9.92348684,47588.0,47587.0,1.43937105]
[1633110490619,9.92348684,47588.0,47587.0,1.50313465]
[1633110491217,9.92348684,47588.0,47587.0,1.27993465]
[1633110491417,9.92348684,47588.0,47587.0,1.16032244]
[1633110491817,9.92104977,47588.0,47587.0,1.16032244]
[1633110492016,9.92104977,47588.0,47587.0,1.19632244]
[1633110493217,9.92104977,47588.0,47587.0,1.05032244]
[1633110493417,9.92104977,47588.0,47587.0,1.3109154]
[1633110493618,9.92104977,47588.0,47587.0,1.32576401]
[1633110494020,9.92104977,47588.0,47587.0,1.36276401]
[1633110495217,9.92104977,47588.0,47587.0,1.32576401]
[1633110496019,9.92104977,47588.0,47587.0,1.3489154]
[1633110496219,9.89664977,47588.0,47587.0,1.3245154]
[1633110496821,9.39666977,47588.0,47587.0,1.3245154]
[1633110497018,9.39666977,47588.0,47587.0,1.06392244]
[1633110497217,8.89668977,47588.0,47587.0,1.06392244]
[1633110497419,8.89668977,47588.0,47587.0,1.02592244]
[1633110497818,8.39670977,47588.0,47587.0,1.13592244]
[1633110498022,8.39670977,47588.0,47587.0,1.17392244]
[1633110498219,7.89672977,47588.0,47587.0,1.17392244]
[1633110499219,7.39674977,47588.0,47587.0,1.15077105]
[1633110500021,7.29178623,47588.0,47587.0,1.18677105]
[1633110500423,7.29178623,47588.0,47587.0,2.20677105]
[1633110500626,7.29178623,47588.0,47587.0,2.45376305]
[1633110500826,0.0006,47591.0,47590.0,1.17974665]
[1633110501025,0.0006,47591.0,47590.0,1.10453611]
[1633110501226,0.003,47594.0,47590.0,1.80453611]
[1633110501424,0.003,47594.0,47593.0,2.97934284]
[1633110501628,0.003,47594.0,47593.0,3.21227382]
[1633110501824,0.0008,47599.0,47594.0,2.0]
[1633110501825,0.0002,47596.0,47594.0,2.0]
[1633110502027,0.001,47615.0,47599.0,2.45]
[1633110502028,0.0002,47610.0,47599.0,2.45]
[1633110502227,0.001,47620.0,47618.0,0.55244014]
[1633110502428,0.001,47620.0,47618.0,1.2345428]
[1633110502625,0.001,47620.0,47618.0,1.48181149]
[1633110502822,0.001,47620.0,47618.0,1.22636786]
[1633110503023,0.001,47627.0,47618.0,1.22636786]
[1633110503024,0.06136358,47639.0,47618.0,1.19636786]
[1633110503229,0.06136358,47639.0,47633.0,0.08800354]
[1633110503230,0.0006,47639.0,47633.0,0.08800354]
[1633110503427,0.001,47641.0,47633.0,0.08800354]
[1633110503428,0.06195593,47648.0,47643.0,1.3]
[1633110503624,0.06195593,47648.0,47647.0,2.78249142]
[1633110503625,0.0002,47648.0,47647.0,2.78249142]
[1633110503828,0.011,47649.0,47647.0,2.7023491]
[1633110504029,0.0014,47652.0,47650.0,0.18676762]
[1633110504235,0.014,47669.0,47659.0,0.00410375]
[1633110504236,17.81666049,47666.0,47659.0,0.00410375]
[1633110504537,10.14899678,47666.0,47665.0,3.81675083]
[1633110504729,0.014,47669.0,47666.0,3.02376028]
[1633110504935,0.00087987,47682.0,47679.0,0.003125]
[1633110505131,0.02973551,47682.0,47681.0,1.46543917]
[1633110505331,0.04802286,47681.0,47680.0,0.80666297]
[1633110505531,0.836081,47675.0,47671.0,0.5]
[1633110505736,0.1298198,47666.0,47665.0,0.1]
[1633110505930,2.89338833,47666.0,47665.0,0.1]
[1633110506129,2.89338833,47666.0,47665.0,0.196875]
[1633110506130,0.09208156,47666.0,47665.0,0.196875]
[1633110506332,0.09208156,47666.0,47665.0,0.413867]
[1633110506533,0.09208156,47666.0,47665.0,0.410742]
[1633110506729,0.09208156,47666.0,47665.0,0.410542]
[1633110507530,0.09208156,47666.0,47665.0,0.41646078]
[1633110507731,0.09208156,47666.0,47665.0,0.5505916]
[1633110508236,0.001,47684.0,47666.0,0.04717503]
[1633110508430,0.001,47684.0,47670.0,0.5]
[1633110508632,0.09263856,47674.0,47673.0,0.414484]
[1633110508832,0.7369046,47674.0,47673.0,0.53500482]
[1633110509030,0.18700047,47674.0,47673.0,0.53187982]
[1633110509431,2.45,47673.0,47665.0,6e-05]
[1633110509634,1.05249537,47667.0,47665.0,0.11684772]
[1633110509830,0.00249537,47667.0,47665.0,0.11684772]
[1633110510031,0.00249537,47667.0,47666.0,0.08097503]
[1633110510232,0.00122977,47667.0,47666.0,0.0997802]
[1633110510432,0.00122977,47667.0,47666.0,0.2825752]
[1633110510637,0.00122977,47667.0,47666.0,0.2818451]
[1633110511034,0.00127345,47667.0,47666.0,0.2816451]
[1633110511231,0.00127345,47667.0,47666.0,0.36674546]
[1633110511432,0.00127345,47667.0,47666.0,0.3720352]
[1633110511634,0.00127345,47667.0,47666.0,0.3713051]
[1633110512034,0.00127345,47667.0,47666.0,0.3716352]
[1633110512236,0.00127345,47667.0,47666.0,0.4141051]
[1633110512635,0.00127345,47667.0,47666.0,0.40008852]
[1633110513137,0.52548975,47666.0,47658.0,3.99]
[1633110513341,0.26433297,47665.0,47659.0,0.043433]
[1633110513534,0.31302869,47660.0,47659.0,0.043433]
[1633110513736,0.31302869,47660.0,47658.0,3.99]
[1633110513737,0.42556048,47660.0,47658.0,3.99]
[1633110513936,2.4710781,47659.0,47658.0,3.99]
[1633110514135,0.0210781,47659.0,47658.0,3.99]
[1633110514335,0.0210781,47659.0,47658.0,4.03351096]
[1633110514733,0.0210781,47659.0,47658.0,4.03516635]
[1633110514935,0.0210781,47659.0,47658.0,3.99172735]
[1633110515137,0.11521939,47659.0,47658.0,3.98172735]
[1633110515737,0.11521939,47659.0,47658.0,3.9978874]
[1633110516140,0.11521939,47659.0,47658.0,4.0388874]
[1633110516342,0.11521939,47659.0,47658.0,1.75410309]
[1633110516343,2.56521939,47659.0,47658.0,1.75410309]
[1633110516540,2.78202339,47659.0,47658.0,1.75097809]
[1633110516939,0.33202339,47659.0,47658.0,1.75097809]
[1633110517140,2.56521939,47659.0,47658.0,1.74097809]
[1633110517342,1.03202339,47659.0,47658.0,1.74097809]
[1633110517541,0.81521939,47659.0,47658.0,1.69997809]
[1633110517739,0.81521939,47659.0,47648.0,0.2454]
[1633110517740,0.09229959,47658.0,47648.0,0.2454]
[1633110517941,0.00121811,47649.0,47648.0,0.2454]
[1633110518341,0.00121811,47649.0,47648.0,0.24551993]
[1633110518545,0.21802211,47649.0,47648.0,0.00011993]
[1633110518741,0.66261987,47649.0,47648.0,0.00011993]
[1633110518943,0.36419035,47649.0,47648.0,0.00011993]
[1633110519145,0.36419035,47649.0,47640.0,0.30486793]
[1633110519443,0.71322899,47649.0,47640.0,0.30486793]
[1633110519842,0.00121807,47641.0,47640.0,0.3102001]
[1633110520040,0.00121807,47641.0,47640.0,0.3936671]
[1633110520242,0.00121807,47641.0,47640.0,0.39376306]
[1633110521045,0.00121807,47641.0,47640.0,0.40187238]
[1633110521441,0.00121807,47641.0,47640.0,0.36187238]
[1633110522243,0.00121807,47641.0,47640.0,0.40087238]
[1633110523650,0.00713302,47641.0,47640.0,0.39276306]
[1633110524041,0.00713302,47641.0,47640.0,0.35376306]
[1633110524244,0.007273,47641.0,47640.0,0.39276306]
[1633110524651,0.00127362,47650.0,47642.0,0.00121807]
[1633110524845,0.00127362,47650.0,47643.0,0.0439961]
[1633110525112,0.26692606,47649.0,47643.0,0.0562118]
[1633110525446,0.24362623,47647.0,47643.0,0.0562118]
[1633110525647,0.26692606,47649.0,47643.0,0.0127458]
[1633110525846,0.26692606,47649.0,47644.0,0.05025474]
[1633110526046,0.001216,47645.0,47644.0,0.05025474]
[1633110526250,0.001216,47645.0,47644.0,0.26005074]
[1633110526445,0.001216,47645.0,47644.0,0.253261]
[1633110526646,0.001216,47645.0,47644.0,0.2643211]
[1633110527852,0.25583863,47658.0,47644.0,0.56911584]
[1633110528113,0.00127517,47651.0,47645.0,0.39767932]
[1633110528252,0.00127517,47651.0,47648.0,0.07041288]
[1633110528449,0.00127517,47651.0,47649.0,0.043457]
[1633110529249,0.00355416,47650.0,47649.0,0.043457]
[1633110530249,0.00355416,47650.0,47649.0,0.086457]
[1633110531453,0.00128571,47652.0,47649.0,0.086457]
[1633110531653,0.00128571,47652.0,47651.0,0.314661]
[1633110531851,0.00128571,47652.0,47651.0,0.358114]
[1633110532251,0.00128571,47652.0,47651.0,0.4084693]
[1633110533653,0.32457773,47658.0,47652.0,0.043452]
[1633110533853,0.00125715,47654.0,47651.0,0.3260163]
[1633110534054,0.00125715,47654.0,47652.0,0.043449]
[1633110534253,0.00125715,47654.0,47652.0,0.083449]
[1633110534751,0.00125715,47654.0,47652.0,0.04]
[1633110535254,0.00012299,47653.0,47652.0,0.04]
[1633110535455,0.00012299,47653.0,47652.0,0.083451]
[1633110536052,0.00012299,47653.0,47652.0,0.043451]
[1633110536252,0.00012299,47653.0,47652.0,0.085451]
[1633110536854,0.00012299,47653.0,47652.0,0.09250728]
[1633110537255,0.00012299,47653.0,47652.0,0.04805628]
[1633110537462,0.00012299,47653.0,47642.0,0.00121807]
[1633110537463,2.63880035,47643.0,47642.0,0.00121807]
[1633110537658,0.60375508,47643.0,47642.0,0.00121807]
[1633110537856,1.00702882,47643.0,47642.0,0.00129003]
[1633110538254,1.00702882,47643.0,47642.0,0.03329003]
[1633110538255,1.39020599,47643.0,47642.0,0.03329003]
[1633110539655,1.34998623,47643.0,47632.0,0.00651486]
[1633110539856,0.09343207,47633.0,47632.0,0.00651486]
[1633110540118,0.32883607,47633.0,47632.0,0.00651486]
[1633110540255,0.32883607,47633.0,47632.0,0.02263483]
[1633110540455,0.32883607,47633.0,47632.0,0.01611997]
[1633110540655,0.67107677,47633.0,47632.0,0.01611997]
[1633110540859,0.32883607,47633.0,47632.0,0.01611997]
[1633110541457,0.66680072,47633.0,47632.0,0.01611997]
[1633110541657,3.11931784,47633.0,47621.0,0.00542442]
[1633110541862,0.00124204,47622.0,47621.0,0.00542442]
[1633110542256,0.00124204,47622.0,47621.0,0.07606442]
[1633110542656,0.00124204,47622.0,47621.0,0.07533396]
[1633110543256,0.00124204,47622.0,47621.0,0.40524501]
[1633110543656,0.00128405,47624.0,47621.0,0.09036701]
[1633110543855,0.00128405,47624.0,47621.0,0.06336701]
[1633110544056,0.00128405,47624.0,47623.0,0.00010799]
[1633110544258,0.00128405,47624.0,47623.0,0.04868191]
[1633110544460,0.00128405,47624.0,47623.0,0.13594384]
[1633110544658,0.01484204,47631.0,47623.0,0.04868191]
[1633110544860,0.00126627,47624.0,47623.0,0.00517791]
[1633110545660,0.0013637,47624.0,47623.0,0.00517791]
[1633110546259,0.0013637,47624.0,47623.0,0.03917791]
[1633110546662,0.0013637,47624.0,47623.0,0.39755391]
[1633110547459,0.0013637,47624.0,47623.0,0.36355391]
[1633110547659,0.0013637,47624.0,47623.0,0.04867991]
[1633110548261,0.0013637,47624.0,47623.0,0.08167991]
[1633110548461,9.743e-05,47624.0,47623.0,0.08167991]
[1633110548864,9.743e-05,47624.0,47623.0,0.61975591]
[1633110549137,3.743e-05,47624.0,47623.0,0.63835591]
[1633110549262,3.743e-05,47624.0,47623.0,0.73948368]
[1633110549464,3.743e-05,47624.0,47623.0,0.73441376]
[1633110549664,3.743e-05,47624.0,47623.0,0.70141376]
[1633110550263,3.743e-05,47624.0,47623.0,0.6731174]
[1633110550464,3.743e-05,47624.0,47623.0,0.63581609]
[1633110550662,3.743e-05,47624.0,47623.0,0.41261609]
[1633110551063,3.743e-05,47624.0,47623.0,0.40521609]
[1633110551265,0.0007097,47633.0,47628.0,0.11225729]
[1633110551466,0.0007097,47633.0,47630.0,0.314816]
[1633110551665,0.000555,47636.0,47631.0,0.1121167]
[1633110552152,0.00063998,47646.0,47632.0,0.34047852]
[1633110552270,0.00123242,47646.0,47632.0,0.34047852]
[1633110552466,9.597e-05,47633.0,47632.0,0.34047852]
[1633110552667,9.597e-05,47633.0,47632.0,0.574153]
[1633110553067,9.597e-05,47633.0,47632.0,0.350953]
[1633110553267,9.597e-05,47633.0,47632.0,0.036191]
[1633110554065,9.597e-05,47633.0,47632.0,0.05120511]
[1633110554266,9.597e-05,47633.0,47632.0,0.08620511]
[1633110554469,9.597e-05,47633.0,47632.0,0.30940511]
[1633110554667,9.597e-05,47633.0,47632.0,0.08620511]
[1633110555666,9.597e-05,47633.0,47632.0,0.05120511]
[1633110556065,0.00019116,47633.0,47632.0,0.05120511]
[1633110556268,0.09657048,47642.0,47633.0,0.036194]
[1633110556269,0.00126088,47638.0,47633.0,0.036194]
[1633110556468,0.00126088,47638.0,47632.0,0.035]
[1633110556671,0.18880035,47643.0,47632.0,0.035]
[1633110556868,0.00120714,47639.0,47632.0,0.035]
[1633110557068,0.18880035,47643.0,47632.0,0.035]
[1633110557472,0.18880035,47643.0,47634.0,0.0788175]
[1633110558132,0.18880035,47643.0,47629.0,0.32933946]
[1633110558268,0.21480035,47643.0,47634.0,0.028]
[1633110558673,0.21480035,47643.0,47636.0,0.314777]
[1633110559671,0.18880035,47643.0,47637.0,0.01500121]
[1633110559870,0.18880035,47643.0,47637.0,0.02275271]
[1633110560272,0.20580035,47643.0,47638.0,0.314769]
[1633110560476,0.20580035,47643.0,47638.0,0.32159229]
[1633110560673,7.197e-05,47639.0,47638.0,0.00682329]
[1633110560874,7.197e-05,47639.0,47637.0,0.04400121]
[1633110561142,7.197e-05,47639.0,47637.0,0.05020558]
[1633110561675,0.08887232,47643.0,47637.0,0.02120558]
[1633110561872,0.08887232,47643.0,47637.0,0.00620437]
[1633110562280,0.10687232,47643.0,47637.0,0.03420437]
[1633110563673,0.08887232,47643.0,47637.0,0.00620437]
[1633110563872,0.08887232,47643.0,47639.0,0.314756]
[1633110564279,0.10487232,47643.0,47639.0,0.314756]
[1633110564479,0.10487232,47643.0,47637.0,0.03420437]
[1633110565077,0.10487232,47643.0,47638.0,0.01500035]
[1633110565283,0.10487232,47643.0,47638.0,0.01400035]
[1633110565680,0.08887232,47643.0,47638.0,0.01400035]
[1633110566280,0.08887232,47643.0,47638.0,0.04400035]
[1633110566679,0.08896547,47643.0,47638.0,0.10360159]
[1633110567279,0.08896547,47643.0,47638.0,0.08960124]
[1633110567477,0.08896547,47643.0,47638.0,0.05960124]
[1633110567683,0.08896547,47643.0,47639.0,0.05960784]
[1633110568281,0.11496547,47643.0,47639.0,0.025]
[1633110568679,0.11277348,47643.0,47639.0,0.025]
[1633110568979,0.11277348,47643.0,47639.0,0.18246848]
[1633110569178,0.11277348,47643.0,47639.0,0.08461753]
[1633110569580,0.11277348,47643.0,47640.0,0.15741675]
[1633110569779,0.08677348,47643.0,47640.0,0.15741675]
[1633110570384,0.08677348,47643.0,47640.0,0.18841675]
[1633110570583,0.08677348,47643.0,47641.0,0.01449777]
[1633110570783,0.08677348,47643.0,47641.0,0.17189901]
[1633110570986,0.08677348,47643.0,47642.0,0.69350117]
[1633110571185,0.02211614,47643.0,47642.0,0.89383917]
[1633110571384,0.02211614,47643.0,47642.0,0.67063917]
[1633110571385,0.01074872,47643.0,47642.0,0.67063917]
[1633110571581,0.01074872,47643.0,47642.0,0.33484014]
[1633110571783,0.01074872,47643.0,47642.0,0.66244261]
[1633110571986,0.00122947,47653.0,47643.0,0.01065557]
[1633110572184,0.00122947,47653.0,47648.0,0.05951122]
[1633110572384,0.00122947,47653.0,47652.0,0.07829369]
[1633110572583,0.00122947,47653.0,47652.0,0.35039727]
[1633110573582,0.00122947,47653.0,47652.0,0.00786167]
[1633110573983,0.00122947,47653.0,47648.0,0.35477879]
[1633110574184,0.00122947,47653.0,47647.0,0.14621827]
[1633110574383,0.00011992,47649.0,47648.0,0.33004924]
[1633110574582,0.00011992,47649.0,47648.0,0.15545847]
[1633110574783,0.00011992,47649.0,47644.0,0.0191301]
[1633110574784,0.00011992,47649.0,47646.0,0.05953422]
[1633110574982,0.00011992,47649.0,47645.0,0.05955646]
[1633110575184,0.21106347,47653.0,47646.0,0.15562255]
[1633110575382,0.52577747,47653.0,47647.0,0.49385142]
[1633110575587,0.52577747,47653.0,47644.0,0.36927001]
[1633110575781,0.52577747,47653.0,47645.0,0.09608116]
[1633110575782,0.21106347,47653.0,47645.0,0.09608116]
[1633110576191,0.21106347,47653.0,47646.0,0.09238055]
[1633110576384,0.23606347,47653.0,47647.0,0.33022343]
[1633110576587,9.594e-05,47647.0,47646.0,0.01448573]
[1633110576784,3.594e-05,47647.0,47646.0,0.01448573]
[1633110577187,0.00012507,47647.0,47646.0,0.01448573]
[1633110577984,0.00012507,47647.0,47646.0,0.45725893]
[1633110578187,0.00012507,47647.0,47646.0,0.43394611]
[1633110578485,0.00012507,47647.0,47646.0,0.06817]
[1633110579691,0.00012507,47647.0,47646.0,0.03617]
[1633110580288,0.02512507,47647.0,47646.0,0.06617]
[1633110581693,0.00012507,47647.0,47646.0,0.01117]
[1633110582295,0.02512507,47647.0,47646.0,0.04117]
[1633110583692,0.00012507,47647.0,47646.0,0.01117]
[1633110583895,0.00012507,47647.0,47646.0,0.13607516]
[1633110584295,0.01812507,47647.0,47646.0,0.1670508]
[1633110584498,0.01812507,47647.0,47646.0,0.04786476]
[1633110584695,0.01006523,47647.0,47646.0,0.04786476]
[1633110584895,0.01006523,47647.0,47646.0,0.16702667]
[1633110585161,0.01006523,47647.0,47646.0,0.04786476]
[1633110585293,0.01006523,47647.0,47646.0,0.16704832]
[1633110585897,0.21105472,47656.0,47646.0,0.13604832]
[1633110586093,0.21105472,47656.0,47647.0,0.45133547]
[1633110586293,0.018,47647.0,47646.0,0.03769476]
[1633110586495,0.018,47647.0,47646.0,0.04886376]
[1633110586695,0.018,47647.0,47646.0,0.03886376]
[1633110586893,0.018,47647.0,47646.0,0.02769476]
[1633110587692,8.022e-05,47647.0,47644.0,0.12544812]
[1633110587892,8.022e-05,47647.0,47644.0,0.00619882]
[1633110588497,0.02508022,47647.0,47644.0,0.03619882]
[1633110589296,0.02447058,47647.0,47644.0,0.03619882]
[1633110589697,0.02447058,47647.0,47645.0,0.13720249]
[1633110589896,0.02447058,47647.0,47646.0,0.47903594]
[1633110590097,0.02447058,47647.0,47646.0,0.37715781]
[1633110590300,0.00120434,47657.0,47646.0,0.01723007]
[1633110590501,0.0144699,47647.0,47646.0,0.37881745]
[1633110590700,0.0144699,47647.0,47646.0,0.40858645]
[1633110591502,0.0144699,47647.0,47646.0,0.04126373]
[1633110591700,0.0384314,47658.0,47646.0,0.64489045]
[1633110591900,0.0384314,47658.0,47647.0,0.09054868]
[1633110592100,0.0384314,47658.0,47647.0,0.09596733]
[1633110592298,0.0384314,47658.0,47648.0,0.10505695]
[1633110592501,0.0634314,47658.0,47652.0,0.314649]
[1633110592699,0.0634314,47658.0,47653.0,0.41388201]
[1633110592899,0.0634314,47658.0,47654.0,0.0905702]
[1633110593299,9.593e-05,47655.0,47654.0,0.0905702]
[1633110594502,0.02609593,47655.0,47654.0,0.1195702]
[1633110595903,0.02609593,47655.0,47654.0,0.0905702]
[1633110595904,9.593e-05,47655.0,47654.0,0.0905702]
[1633110596404,9.593e-05,47655.0,47654.0,0.1215702]
[1633110596405,0.01009593,47655.0,47654.0,0.1215702]
[1633110597702,9.593e-05,47655.0,47654.0,0.0905702]
[1633110597904,9.593e-05,47655.0,47654.0,0.08744297]
[1633110598104,9.593e-05,47655.0,47654.0,0.08746671]
[1633110598304,9.593e-05,47655.0,47652.0,0.40212938]
[1633110598503,0.00709593,47655.0,47654.0,0.032]
[1633110598702,0.007,47655.0,47654.0,0.032]
[1633110598909,0.00821444,47655.0,47654.0,0.032]
[1633110599101,0.00821444,47655.0,47654.0,0.11957865]
[1633110599904,0.00121444,47655.0,47654.0,0.08757865]
[1633110600168,0.00121444,47655.0,47652.0,0.08759969]
[1633110600306,0.00121444,47655.0,47652.0,0.08759418]
[1633110600507,0.01521444,47655.0,47654.0,0.031]
[1633110600909,0.01531037,47655.0,47654.0,0.031]
[1633110601109,0.01531037,47655.0,47654.0,0.11862171]
[1633110601310,0.01531037,47655.0,47654.0,0.031]
[1633110601509,0.01531037,47655.0,47654.0,0.11861643]
[1633110601706,0.00319681,47655.0,47654.0,0.43326343]
[1633110601906,9.593e-05,47655.0,47654.0,0.08761643]
[1633110602110,9.593e-05,47655.0,47654.0,0.08737686]
[1633110602309,9.593e-05,47655.0,47652.0,0.08737631]
[1633110602507,0.01509593,47655.0,47654.0,0.032]
[1633110602711,0.015,47655.0,47654.0,0.032]
[1633110602912,0.01621851,47655.0,47654.0,0.11937798]
[1633110603173,0.015,47655.0,47654.0,0.11939583]
[1633110603712,0.0384314,47658.0,47654.0,0.08739583]
[1633110603912,0.0384314,47658.0,47655.0,0.08723617]
[1633110604116,0.0384314,47658.0,47656.0,0.08720162]
[1633110604312,0.1,47655.0,47649.0,0.34649121]
[1633110604513,0.1,47655.0,47650.0,0.08721618]
[1633110604514,0.90127807,47651.0,47650.0,0.08721618]
[1633110604714,1.11808907,47651.0,47645.0,0.0873534]
[1633110604911,0.216811,47650.0,47646.0,0.08823946]
[1633110605115,0.664771,47648.0,47647.0,0.088278]
[1633110605314,0.00125132,47648.0,47647.0,0.08832427]
[1633110605517,0.00125132,47648.0,47644.0,0.08833174]
[1633110605711,0.00125132,47648.0,47647.0,0.05965572]
[1633110605911,0.21806232,47648.0,47647.0,0.05965572]
[1633110606179,0.21806232,47648.0,47646.0,0.05965617]
[1633110606314,0.31602232,47648.0,47647.0,0.14799461]
[1633110606515,0.55783332,47648.0,47647.0,0.029]
[1633110606720,0.24306232,47648.0,47647.0,0.18255146]
[1633110606917,0.24306232,47648.0,47647.0,0.18250094]
[1633110607320,3.35751064,47648.0,47647.0,0.029]
[1633110607518,3.35751064,47648.0,47643.0,0.07032467]
[1633110607519,0.04951511,47646.0,47643.0,0.07032467]
[1633110607717,2.66933291,47644.0,47643.0,0.01065557]
[1633110607916,0.23846278,47644.0,47643.0,0.01065557]
[1633110608117,0.86521462,47644.0,47643.0,0.01065557]
[1633110608315,1.31521462,47644.0,47643.0,0.01065557]
[1633110608518,1.31521462,47644.0,47625.0,0.2660361]
[1633110608519,0.28295663,47635.0,47633.0,0.05971442]
[1633110608716,0.28295663,47635.0,47632.0,0.0597313]
[1633110608717,0.2180242,47634.0,47632.0,0.0597313]
[1633110608921,0.32483151,47633.0,47632.0,0.0597313]
[1633110609188,0.32483151,47633.0,47632.0,0.06026428]
[1633110609189,0.54288718,47633.0,47632.0,0.06026428]
[1633110609422,0.54288718,47633.0,47632.0,0.15397325]
[1633110609617,0.21805567,47633.0,47632.0,0.00015595]
[1633110609818,0.00124467,47633.0,47632.0,0.00118494]
[1633110610018,0.31613667,47633.0,47632.0,0.00118494]
[1633110610417,0.34113667,47633.0,47632.0,0.03124494]
[1633110610817,0.79270868,47633.0,47632.0,0.03124494]
[1633110611020,1.12658613,47633.0,47632.0,0.03124494]
[1633110611222,1.14771616,47633.0,47632.0,0.03124494]
[1633110611625,0.96814885,47633.0,47632.0,0.03124494]
[1633110611820,1.07939714,47633.0,47632.0,0.00124494]
[1633110612025,1.05439714,47633.0,47632.0,0.00124494]
[1633110612423,1.05439714,47633.0,47632.0,0.01504494]
[1633110612424,2.43439714,47633.0,47632.0,0.01504494]
[1633110612622,0.75051969,47633.0,47632.0,0.01504494]
[1633110612824,3.20051969,47633.0,47632.0,0.00504494]
[1633110613022,0.75051969,47633.0,47632.0,0.00504494]
[1633110613422,0.51575868,47633.0,47632.0,0.00504494]
[1633110613622,0.51522881,47633.0,47632.0,0.00504494]
[1633110613824,0.48522881,47633.0,47631.0,0.1998]
[1633110614023,0.21734087,47632.0,47631.0,0.1998]
[1633110614224,0.23721573,47632.0,47631.0,0.1998]
[1633110614424,0.23721573,47632.0,47631.0,0.2138]
[1633110614627,0.23721573,47632.0,47631.0,0.3138]
[1633110615423,0.23668586,47632.0,47631.0,0.3138]
[1633110615822,0.23668586,47632.0,47631.0,0.2998]
[1633110616422,0.26868586,47632.0,47631.0,0.3088]
[1633110617022,0.26868586,47632.0,47631.0,0.2088]
[1633110617227,0.91921573,47632.0,47631.0,0.1981]
[1633110617425,0.26921573,47632.0,47631.0,0.1981]
[1633110617626,0.26921573,47632.0,47631.0,0.009]
[1633110617827,0.2488102,47620.0,47613.0,0.40724776]
[1633110618027,0.00121231,47621.0,47614.0,0.011197]
[1633110618293,0.00121231,47621.0,47619.0,0.000156]
[1633110618493,0.026,47620.0,47619.0,0.000156]
[1633110619896,0.18923793,47621.0,47619.0,0.000156]
[1633110620094,0.18802562,47621.0,47617.0,0.095156]
[1633110620495,0.21402562,47621.0,47619.0,0.03]
[1633110621795,0.21402562,47621.0,47617.0,0.095156]
[1633110621796,0.18802562,47621.0,47617.0,0.095156]
[1633110622598,0.21402562,47621.0,47617.0,0.125156]
[1633110622799,0.216811,47620.0,47617.0,0.125156]
[1633110623401,0.211811,47620.0,47617.0,0.125156]
[1633110623803,2.45129922,47618.0,47617.0,0.095156]
[1633110624001,2.68793095,47618.0,47617.0,0.095156]
[1633110624204,2.68846082,47618.0,47617.0,0.095156]
[1633110624602,2.71846082,47618.0,47617.0,0.115156]
[1633110624801,2.51018317,47617.0,47610.0,0.0004]
[1633110625010,0.55785708,47611.0,47610.0,0.0004]
[1633110625204,1.15159623,47611.0,47610.0,0.0004]
[1633110625403,1.15159623,47611.0,47610.0,0.00050803]
[1633110625800,1.43216582,47611.0,47610.0,0.00050803]
[1633110626301,1.43216582,47611.0,47610.0,0.01721785]
[1633110626504,1.45767651,47611.0,47610.0,0.01721785]
[1633110626703,1.45767651,47611.0,47610.0,0.00406511]
[1633110627103,2.666818,47609.0,47607.0,0.0004]
[1633110627305,2.666818,47609.0,47602.0,0.0004]
[1633110627306,2.666818,47605.0,47602.0,0.0004]
[1633110627505,2.66922677,47603.0,47602.0,0.0004]
[1633110627708,2.8650886,47603.0,47602.0,0.0004]
[1633110627901,0.49440368,47603.0,47602.0,0.0004]
[1633110628103,0.85223395,47603.0,47602.0,0.0004]
[1633110628302,1.07654054,47603.0,47602.0,0.0004]
[1633110628501,1.09778702,47603.0,47602.0,0.0004]
[1633110628703,0.64599134,47603.0,47602.0,0.0004]
[1633110629102,1.64599134,47603.0,47602.0,0.0004]
[1633110629302,1.64599134,47603.0,47596.0,0.3394]
[1633110629303,0.216818,47602.0,47596.0,0.3364]
[1633110629503,0.25915637,47600.0,47596.0,0.1864]
[1633110629704,0.445507,47599.0,47596.0,0.1864]
[1633110630102,1.245507,47599.0,47598.0,0.00014406]
[1633110630708,0.477507,47599.0,47598.0,0.00014406]
[1633110631304,0.897689,47599.0,47598.0,0.00014406]
[1633110631905,0.445507,47599.0,47598.0,0.01509655]
[1633110632306,0.865686,47599.0,47598.0,0.01509655]
[1633110632705,0.896686,47599.0,47598.0,0.01509655]
[1633110634412,0.896686,47599.0,47592.0,0.0004]
[1633110634413,0.18567792,47593.0,47592.0,0.0004]
[1633110635008,0.18567792,47593.0,47592.0,0.10047204]
[1633110635009,0.71763888,47593.0,47592.0,0.10047204]
[1633110635211,0.63740762,47593.0,47592.0,0.10047204]
[1633110635410,0.8498289,47593.0,47592.0,0.10047204]
[1633110635607,0.63740762,47593.0,47592.0,0.10047204]
[1633110636011,0.62740762,47593.0,47592.0,0.10047204]
[1633110636210,0.73740762,47593.0,47592.0,0.10047204]
[1633110636611,1.01720598,47593.0,47592.0,0.10047204]
[1633110637612,1.02451693,47593.0,47592.0,0.1079589]
[1633110638216,1.34249712,47593.0,47592.0,0.1079589]
[1633110638414,0.99475739,47593.0,47592.0,0.1079589]
[1633110638614,0.99475739,47593.0,47592.0,0.0079589]
[1633110638817,1.02475739,47593.0,47592.0,0.0079589]